bitfinex-derivatives/quotes_BTCF0:USTF0_20260106
["timestamp","ask_amount","ask_price","bid_price","bid_amount"]
[1767721463614,0.0997516,92277.0,92253.0,0.0922]
[1767721463812,0.0922,92281.0,92254.0,0.09005916]
[1767721464006,0.0922,92281.0,92264.0,0.010843]
[1767721464513,0.09724976,92282.0,92264.0,0.010843]
[1767721464714,0.18944976,92281.0,92266.0,0.010843]
[1767721464912,0.0922,92281.0,92266.0,0.010843]
[1767721465127,0.0922,92281.0,92263.0,0.010843]
[1767721465409,0.0922,92281.0,92255.0,0.09005916]
[1767721465410,0.0997516,92275.0,92253.0,0.0922]
[1767721465610,0.1105936,92275.0,92256.0,0.010844]
[1767721466009,0.0997516,92275.0,92256.0,0.010844]
[1767721466315,0.0997516,92275.0,92255.0,0.010844]
[1767721466506,0.19139333,92275.0,92255.0,0.010844]
[1767721466702,0.19139333,92275.0,92246.0,0.09005916]
[1767721467104,0.010842,92270.0,92248.0,0.010845]
[1767721467317,0.0997516,92263.0,92244.0,0.0922]
[1767721467507,0.0997516,92263.0,92247.0,0.010845]
[1767721467708,0.0997516,92263.0,92244.0,0.103045]
[1767721468215,0.0997516,92263.0,92238.0,0.10090516]
[1767721468415,0.0997516,92263.0,92238.0,0.09005916]
[1767721469307,0.0997516,92263.0,92236.0,0.0922]
[1767721469308,0.0997516,92263.0,92236.0,0.03571201]
[1767721469509,0.0997516,92263.0,92247.0,0.010845]
[1767721469907,0.09164173,92262.0,92236.0,0.03571201]
[1767721470107,0.09164173,92262.0,92241.0,0.010845]
[1767721470108,0.0997516,92261.0,92241.0,0.010845]
[1767721470308,0.0997516,92261.0,92236.0,0.03571201]
[1767721470516,0.0997516,92261.0,92245.0,0.010845]
[1767721471322,0.09164173,92262.0,92247.0,0.010845]
[1767721472319,0.18906032,92269.0,92241.0,0.09868753]
[1767721472630,0.0922,92269.0,92241.0,0.09980407]
[1767721472818,0.09686032,92269.0,92236.0,0.03571201]
[1767721473008,0.10258286,92268.0,92247.0,0.010845]
[1767721473609,0.09174086,92262.0,92236.0,0.03571201]
[1767721473817,0.18860118,92260.0,92239.0,0.010846]
[1767721474014,0.18860118,92260.0,92238.0,0.010846]
[1767721474218,0.09174086,92253.0,92232.0,0.010847]
[1767721474418,0.18860118,92251.0,92233.0,0.010846]
[1767721474617,0.09174086,92261.0,92232.0,0.09868753]
[1767721474915,0.09686032,92262.0,92231.0,0.0922]
[1767721474916,0.0922,92262.0,92249.0,0.010845]
[1767721475118,0.0922,92262.0,92237.0,0.09868753]
[1767721475323,0.010842,92273.0,92253.0,0.010844]
[1767721475614,0.010842,92273.0,92236.0,0.010846]
[1767721475615,0.0922,92273.0,92262.0,0.010843]
[1767721476123,0.0922,92273.0,92250.0,0.010844]
[1767721476351,0.09724976,92292.0,92265.0,0.09868753]
[1767721476512,0.0922,92303.0,92274.0,0.10952953]
[1767721476718,0.0922,92304.0,92276.0,0.09868753]
[1767721476916,0.09174086,92303.0,92276.0,0.09868753]
[1767721477112,0.09174086,92303.0,92286.0,0.01084]
[1767721477417,0.09174086,92303.0,92281.0,0.010841]
[1767721477613,0.09174086,92303.0,92283.0,0.01084]
[1767721477914,0.18394086,92303.0,92285.0,0.01084]
[1767721478118,0.09174086,92303.0,92276.0,0.09868753]
[1767721478326,0.0922,92307.0,92278.0,0.09868753]
[1767721478626,0.010838,92306.0,92283.0,0.010841]
[1767721478817,0.0922,92307.0,92285.0,0.01084]
[1767721479023,0.010838,92305.0,92280.0,0.09868753]
[1767721479320,0.0922,92307.0,92283.0,0.010841]
[1767721479525,0.18860118,92305.0,92271.0,0.09868753]
[1767721479720,0.18860118,92305.0,92283.0,0.01084]
[1767721479918,0.18860118,92305.0,92274.0,0.09868753]
[1767721480125,0.09174086,92305.0,92276.0,0.09552753]
[1767721480425,0.09174086,92305.0,92286.0,0.01084]
[1767721480819,0.09174086,92305.0,92283.0,0.010841]
[1767721481015,0.09686032,92294.0,92261.0,0.010843]
[1767721481226,0.09686032,92294.0,92260.0,0.57552407]
[1767721481227,0.09174086,92293.0,92263.0,0.11064707]
[1767721481550,0.09174086,92293.0,92280.0,0.010841]
[1767721482020,0.09686032,92291.0,92270.0,0.0922]
[1767721482327,0.08957632,92289.0,92276.0,0.010841]
[1767721482822,0.08957632,92289.0,92270.0,0.0922]
[1767721483024,0.08957632,92289.0,92277.0,0.010841]
[1767721483221,0.0922,92295.0,92270.0,0.0922]
[1767721483428,0.0922,92295.0,92273.0,0.09868753]
[1767721483623,0.09686032,92299.0,92282.0,0.010841]
[1767721483825,0.0922,92299.0,92282.0,0.010841]
[1767721484131,0.10769832,92304.0,92282.0,0.010841]
[1767721484330,0.0922,92303.0,92282.0,0.010841]
[1767721484527,0.0922,92303.0,92270.0,0.0922]
[1767721484528,0.0922,92302.0,92279.0,0.09868753]
[1767721484721,0.0922,92302.0,92281.0,0.09868753]
[1767721484927,0.0922,92302.0,92290.0,0.01084]
[1767721485129,0.0922,92302.0,92281.0,0.09868753]
[1767721485329,0.18860118,92312.0,92281.0,0.09868753]
[1767721485330,0.0922,92310.0,92281.0,0.09868753]
[1767721485631,0.09174086,92305.0,92282.0,0.010841]
[1767721485831,0.09174086,92304.0,92280.0,0.0922]
[1767721486730,0.09174086,92302.0,92272.0,0.09868753]
[1767721486930,0.09174086,92289.0,92273.0,0.0922]
[1767721487132,0.09174086,92285.0,92254.0,0.09868753]
[1767721487434,0.0922,92297.0,92254.0,0.010844]
[1767721487435,0.18860118,92278.0,92254.0,0.010844]
[1767721487640,0.09174086,92268.0,92247.0,0.4922]
[1767721488023,0.09174086,92268.0,92247.0,0.4812]
[1767721488219,0.09174086,92268.0,92256.0,0.010844]
[1767721489534,0.09174086,92268.0,92247.0,0.4812]
[1767721489935,0.18394086,92276.0,92257.0,0.010844]
[1767721490325,0.18394086,92276.0,92259.0,0.010843]
[1767721490926,0.18394086,92276.0,92261.0,0.010843]
[1767721491131,0.0922,92291.0,92259.0,0.11064707]
[1767721491434,0.0922,92290.0,92276.0,0.010841]
[1767721491736,0.0922,92290.0,92262.0,0.10953053]
[1767721491737,0.18860118,92293.0,92267.0,0.010842]
[1767721492033,0.18394086,92292.0,92269.0,0.010842]
[1767721492335,0.10258086,92288.0,92265.0,0.010843]
[1767721492738,0.09174086,92288.0,92260.0,0.0922]
[1767721493234,0.13509018,92301.0,92276.0,0.09868753]
[1767721493437,0.0922,92307.0,92290.0,0.01084]
[1767721493626,0.0922,92307.0,92293.0,0.010839]
[1767721493827,0.0922,92307.0,92280.0,0.10952853]
[1767721494134,0.0922,92307.0,92290.0,0.01084]
[1767721494335,0.0922,92307.0,92289.0,0.01084]
[1767721494837,0.09174086,92308.0,92277.0,0.0922]
[1767721494838,0.09174086,92308.0,92295.0,0.010839]
[1767721495056,0.0922,92312.0,92287.0,0.0922]
[1767721495342,0.09686032,92311.0,92287.0,0.0922]
[1767721495741,0.09686032,92311.0,92287.0,0.0872]
[1767721496832,0.09686032,92311.0,92287.0,0.18588753]
[1767721497032,0.09686032,92311.0,92298.0,0.010839]
[1767721497233,0.10694147,92318.0,92298.0,0.010839]
[1767721497440,0.10694147,92318.0,92278.0,0.010841]
[1767721497441,0.01520061,92318.0,92299.0,0.0922]
[1767721497734,0.01520061,92318.0,92288.0,0.10174272]
[1767721497735,0.09681794,92326.0,92306.0,0.010838]
[1767721498155,0.09681794,92326.0,92301.0,0.09841081]
[1767721498333,0.09503383,92329.0,92300.0,0.0922]
[1767721498334,0.09503383,92329.0,92313.0,0.010837]
[1767721498638,0.09503383,92329.0,92315.0,0.010837]
[1767721498941,0.09503383,92329.0,92312.0,0.010837]
[1767721498942,0.01567394,92329.0,92312.0,0.010837]
[1767721499143,0.0922,92331.0,92312.0,0.010837]
[1767721499440,0.01627819,92331.0,92314.0,0.010837]
[1767721499644,0.18901794,92334.0,92310.0,0.0922]
[1767721500128,0.18901794,92334.0,92314.0,0.010837]
[1767721500330,0.18901794,92334.0,92310.0,0.0922]
[1767721500331,0.09681794,92334.0,92310.0,0.0922]
[1767721500846,0.19185177,92321.0,92287.0,0.01084]
[1767721501037,0.19185177,92311.0,92290.0,0.01084]
[1767721501248,0.09503383,92323.0,92282.0,0.0922]
[1767721501249,0.19077121,92308.0,92282.0,0.0922]
[1767721501441,0.19077121,92296.0,92275.0,0.0922]
[1767721501639,0.19077121,92294.0,92275.0,0.010842]
[1767721501842,0.0922,92297.0,92287.0,0.01084]
[1767721502042,0.09805915,92313.0,92280.0,0.09146177]
[1767721502240,0.09805915,92313.0,92259.0,0.09159918]
[1767721502431,0.09805915,92313.0,92216.0,0.054244]
[1767721502432,0.09805915,92286.0,92254.0,0.0922]
[1767721502644,0.09805915,92276.0,92250.0,0.09146177]
[1767721502838,0.19077121,92263.0,92247.0,0.189]
[1767721503040,0.010841,92284.0,92233.0,0.09146177]
[1767721503041,0.09805915,92257.0,92238.0,0.010846]
[1767721503339,0.09713933,92265.0,92241.0,0.09146177]
[1767721503543,0.0922,92264.0,92244.0,0.09146177]
[1767721503746,0.0922,92264.0,92244.0,0.08346177]
[1767721503942,0.0922,92264.0,92245.0,0.010845]
[1767721504243,0.0922,92264.0,92230.0,0.12818002]
[1767721504244,0.09713933,92274.0,92220.0,0.09159918]
[1767721504438,0.09805915,92264.0,92238.0,0.010846]
[1767721504741,0.09805915,92264.0,92215.0,0.08912]
[1767721504742,0.09805915,92256.0,92223.0,0.010848]
[1767721505046,0.10164929,92238.0,92211.0,0.0922]
[1767721505241,0.36884,92267.0,92211.0,0.0922]
[1767721505242,0.09713933,92253.0,92222.0,0.010848]
[1767721505451,0.09805915,92253.0,92223.0,0.0922]
[1767721505638,0.0922,92256.0,92224.0,0.0922]
[1767721505639,0.09805915,92251.0,92224.0,0.0922]
[1767721505945,0.09805915,92251.0,92225.0,0.103047]
[1767721506143,0.09805915,92251.0,92216.0,0.09146177]
[1767721506440,0.0922,92256.0,92217.0,0.0922]
[1767721506441,0.09805915,92243.0,92217.0,0.0922]
[1767721506744,0.09589109,92243.0,92218.0,0.0922]
[1767721506947,0.09589109,92243.0,92207.0,0.09146177]
[1767721507148,0.09589109,92243.0,92220.0,0.010848]
[1767721507339,0.0922,92244.0,92214.0,0.09146177]
[1767721507544,0.0922,92244.0,92215.0,0.0922]
[1767721507847,0.0922,92244.0,92222.0,0.010848]
[1767721508035,0.0922,92244.0,92217.0,0.010848]
[1767721508036,0.10846642,92244.0,92217.0,0.010848]
[1767721508246,0.0922,92244.0,92217.0,0.10230977]
[1767721508436,0.0922,92244.0,92217.0,0.09146177]
[1767721508638,0.0922,92244.0,92210.0,0.12818002]
[1767721508639,0.09805915,92243.0,92207.0,0.10231077]
[1767721508838,0.09805915,92243.0,92208.0,0.0922]
[1767721509034,0.103045,92244.0,92207.0,0.09146177]
[1767721509035,0.09805915,92241.0,92207.0,0.09146177]
[1767721509242,0.09805915,92239.0,92208.0,0.0922]
[1767721509944,0.09805915,92239.0,92213.0,0.010849]
[1767721510252,0.10792691,92244.0,92210.0,0.09146177]
[1767721510641,0.19025915,92244.0,92210.0,0.09146177]
[1767721510953,0.22531935,92300.0,92210.0,0.09146177]
[1767721510954,0.0922,92262.0,92243.0,0.010845]
[1767721511151,0.0922,92262.0,92248.0,0.010845]
[1767721511444,0.09805915,92263.0,92236.0,0.0922]
[1767721511748,0.09805915,92270.0,92243.0,0.010845]
[1767721512050,0.09805915,92270.0,92239.0,0.010846]
[1767721512351,0.09805915,92268.0,92237.0,0.010846]
[1767721512548,0.09805915,92268.0,92227.0,0.09146177]
[1767721512843,0.09805915,92268.0,92243.0,0.010845]
[1767721514052,0.10890115,92268.0,92236.0,0.010846]
[1767721514246,0.09805915,92261.0,92230.0,0.010847]
[1767721514442,0.00956966,92259.0,92227.0,0.09224]
[1767721514637,0.00740231,92259.0,92236.0,0.010846]
[1767721514841,0.00740231,92259.0,92227.0,0.09224]
[1767721514842,0.01567129,92270.0,92241.0,0.09146177]
[1767721515049,0.12818002,92290.0,92246.0,0.010845]
[1767721515243,0.12818002,92290.0,92244.0,0.010845]
[1767721515548,0.01630727,92290.0,92258.0,0.010843]
[1767721515748,0.72736,92289.0,92258.0,0.010843]
[1767721515950,0.72736,92289.0,92254.0,0.010844]
[1767721516258,0.12818002,92270.0,92222.0,0.09146177]
[1767721516549,0.09224,92269.0,92245.0,0.010845]
[1767721516741,0.12818002,92290.0,92253.0,0.010844]
[1767721516942,0.12818002,92290.0,92235.0,0.09146177]
[1767721516943,1.11032,92289.0,92243.0,0.09146177]
[1767721517147,1.51032,92289.0,92247.0,0.010845]
[1767721517351,0.12818002,92270.0,92235.0,0.010846]
[1767721517658,0.12818002,92290.0,92264.0,0.010843]
[1767721517835,0.00118134,92288.0,92239.0,0.09146177]
[1767721518037,0.00118134,92288.0,92260.0,0.010843]
[1767721518240,1.77888,92289.0,92260.0,0.010843]
[1767721518241,0.00118134,92287.0,92260.0,0.010843]
[1767721518648,0.00118134,92285.0,92260.0,0.010843]
[1767721518954,0.00118134,92285.0,92256.0,0.010844]
[1767721519147,0.00118134,92277.0,92250.0,0.010844]
[1767721519348,0.12818002,92280.0,92241.0,0.09146177]
[1767721519349,0.00118134,92275.0,92244.0,0.010845]
[1767721519550,0.00118134,92275.0,92257.0,0.010844]
[1767721519750,0.00118134,92275.0,92244.0,0.010845]
[1767721520156,0.00118134,92275.0,92257.0,0.010844]
[1767721520558,0.00118134,92275.0,92253.0,0.010844]
[1767721520753,0.00078921,92274.0,92241.0,0.09146177]
[1767721520959,0.00078921,92274.0,92256.0,0.010844]
[1767721521263,0.00078921,92274.0,92241.0,0.09146177]
[1767721521560,0.00078921,92269.0,92253.0,0.010844]
[1767721521761,0.00078921,92269.0,92250.0,0.010844]
[1767721521954,0.00078921,92269.0,92252.0,0.010844]
[1767721522158,0.00078921,92269.0,92249.0,0.010845]
[1767721522450,0.00078921,92269.0,92239.0,0.09146177]
[1767721522656,0.00078921,92269.0,92209.0,0.010849]
[1767721522657,0.00058917,92266.0,92234.0,0.09224]
[1767721522856,0.00058917,92264.0,92234.0,0.09224]
[1767721523149,0.12818002,92270.0,92238.0,0.09146177]
[1767721523150,0.4,92270.0,92238.0,0.09146177]
[1767721523456,0.00058917,92288.0,92264.0,0.010843]
[1767721523753,0.00171288,92291.0,92266.0,0.010843]
[1767721523956,0.3187,92318.0,92253.0,0.010844]
[1767721523957,0.00171288,92312.0,92262.0,0.09146177]
[1767721524159,0.3187,92348.0,92261.0,0.09159918]
[1767721524160,0.00171288,92301.0,92274.0,0.010842]
[1767721524459,0.00171288,92301.0,92253.0,0.010844]
[1767721524460,0.010839,92299.0,92254.0,0.09146177]
[1767721524753,0.010839,92297.0,92267.0,0.10230377]
[1767721524955,0.010839,92297.0,92250.0,0.12818002]
[1767721524956,0.01084,92292.0,92258.0,0.09146177]
[1767721525166,0.09224,92298.0,92270.0,0.010842]
[1767721525461,0.09224,92298.0,92267.0,0.010842]
[1767721525462,0.010839,92294.0,92267.0,0.010842]
[1767721525758,7.443e-05,92285.0,92251.0,0.09146177]
[1767721526059,7.443e-05,92296.0,92240.0,0.10230777]
[1767721526060,0.13909645,92270.0,92240.0,0.10230777]
[1767721526258,0.09224,92269.0,92242.0,0.010845]
[1767721526450,0.09224,92269.0,92244.0,0.010845]
[1767721526756,0.09231443,92269.0,92240.0,0.10230777]
[1767721526949,7.443e-05,92268.0,92240.0,0.08746177]
[1767721527156,7.443e-05,92268.0,92241.0,0.010845]
[1767721527157,0.010843,92267.0,92241.0,0.010845]
[1767721527455,0.010843,92267.0,92226.0,0.010847]
[1767721527456,0.00407443,92256.0,92223.0,0.09224]
[1767721527656,0.09224,92255.0,92227.0,0.020367]
[1767721527859,0.09224,92255.0,92229.0,0.010847]
[1767721528159,0.010842,92272.0,92227.0,0.10111918]
[1767721528357,0.138242,92272.0,92239.0,0.010846]
[1767721528659,0.09224,92271.0,92244.0,0.010845]
[1767721528858,0.00307474,92279.0,92249.0,0.010845]
[1767721529063,1.022681,92278.0,92244.0,0.09146177]
[1767721529261,1.022681,92278.0,92244.0,0.10230677]
[1767721529464,0.00307474,92259.0,92227.0,0.00952]
[1767721529764,0.13125476,92250.0,92227.0,0.00952]
[1767721529964,0.21388,92258.0,92227.0,0.10098177]
[1767721530261,0.00364658,92256.0,92227.0,0.10098177]
[1767721530461,0.379842,92269.0,92227.0,0.10098177]
[1767721530462,0.12818002,92270.0,92237.0,0.09146177]
[1767721530652,0.80504658,92269.0,92237.0,0.09146177]
[1767721530847,0.09224,92268.0,92237.0,0.09146177]
[1767721531068,0.09224,92267.0,92244.0,0.09146177]
[1767721531362,0.09224,92266.0,92247.0,0.010845]
[1767721531553,0.09224,92265.0,92247.0,0.010845]
[1767721531754,0.09224,92264.0,92247.0,0.10266486]
[1767721532062,0.09224,92263.0,92247.0,0.10266486]
[1767721532260,0.09224,92263.0,92238.0,0.10266586]
[1767721532458,0.010844,92255.0,92227.0,0.00952]
[1767721532671,0.010844,92259.0,92228.0,0.09181986]
[1767721532852,0.12818002,92280.0,92230.0,0.09692155]
[1767721533187,0.010842,92275.0,92245.0,0.09181986]
[1767721533364,0.010842,92273.0,92245.0,0.09181986]
[1767721533556,0.010841,92276.0,92245.0,0.09181986]
[1767721533863,0.00270472,92285.0,92252.0,0.09181986]
[1767721534060,0.67823364,92284.0,92252.0,0.01537094]
[1767721534253,0.07915364,92283.0,92252.0,0.01537094]
[1767721534453,0.010841,92277.0,92252.0,0.01537094]
[1767721534758,0.010841,92278.0,92252.0,0.01137094]
[1767721534967,0.010841,92281.0,92253.0,0.010844]
[1767721535565,0.47915364,92283.0,92255.0,0.010844]
[1767721535856,0.09239305,92282.0,92255.0,0.010844]
[1767721536751,0.08155205,92282.0,92252.0,0.01137094]
[1767721537259,0.010842,92273.0,92252.0,0.01137094]
[1767721537459,0.09224,92272.0,92242.0,0.09181986]
[1767721537659,0.13902102,92280.0,92242.0,0.09181986]
[1767721537660,0.010842,92270.0,92244.0,0.010845]
[1767721537858,0.09224,92269.0,92244.0,0.010845]
[1767721538059,0.49224,92269.0,92242.0,0.09181986]
[1767721538358,0.08616342,92268.0,92242.0,0.09181986]
[1767721538563,0.010842,92275.0,92248.0,0.18874141]
[1767721538860,0.3056,92277.0,92251.0,0.09181986]
[1767721539064,0.3056,92277.0,92252.0,0.010844]
[1767721539065,0.09224,92276.0,92252.0,0.010844]
[1767721540064,0.09224,92276.0,92251.0,0.09181986]
[1767721540361,0.09224,92276.0,92251.0,0.10266386]
[1767721540862,0.09224,92276.0,92248.0,0.09692155]
[1767721540863,0.09224,92275.0,92258.0,0.09181986]
[1767721541064,0.09224,92274.0,92258.0,0.09181986]
[1767721541367,0.09224,92273.0,92258.0,0.09181986]
[1767721541565,0.09224,92272.0,92258.0,0.09181986]
[1767721541952,0.09224,92272.0,92250.0,0.09181986]
[1767721542153,0.08645348,92295.0,92262.0,0.09181986]
[1767721542363,0.01084,92292.0,92265.0,0.10266286]
[1767721542668,0.09224,92291.0,92266.0,0.010843]
[1767721542867,0.10308,92291.0,92266.0,0.010843]
[1767721543261,0.09224,92291.0,92266.0,0.010843]
[1767721543461,0.09224,92291.0,92265.0,0.09181986]
[1767721543462,0.01084,92289.0,92265.0,0.09181986]
[1767721543665,0.09224,92288.0,92265.0,0.09181986]
[1767721544868,0.09224,92288.0,92265.0,0.10266286]
[1767721545265,0.01084,92286.0,92265.0,0.09181986]
[1767721545468,0.01084,92286.0,92258.0,0.010844]
[1767721545769,0.01084,92286.0,92258.0,0.10266386]
[1767721545971,0.09224,92288.0,92261.0,0.010843]
[1767721546364,0.09224,92288.0,92258.0,0.01474273]
[1767721547057,0.09224,92288.0,92261.0,0.010843]
[1767721547369,0.09224,92288.0,92253.0,0.09692155]
[1767721547370,0.09224,92287.0,92265.0,0.09692155]
[1767721547675,0.91928,92294.0,92265.0,0.09576355]
[1767721547868,0.08645348,92295.0,92265.0,0.09576355]
[1767721548062,0.09224,92294.0,92265.0,0.09576355]
[1767721548262,0.09264312,92303.0,92265.0,0.09576355]
[1767721548477,1.01152,92300.0,92269.0,0.09181986]
[1767721548705,0.09264312,92303.0,92288.0,0.09181986]
[1767721548706,0.01555679,92303.0,92288.0,0.09181986]
[1767721548858,0.09224,92304.0,92278.0,0.09224]
[1767721549170,0.09224,92304.0,92264.0,0.010843]
[1767721549171,0.09224,92304.0,92280.0,0.010841]
[1767721549357,0.09224,92304.0,92282.0,0.010841]
[1767721549556,0.09224,92304.0,92275.0,0.09224]
[1767721549557,0.09224,92304.0,92276.0,0.09224]
[1767721549772,0.09224,92304.0,92284.0,0.01084]
[1767721549975,0.09224,92304.0,92276.0,0.09224]
[1767721549976,0.01590833,92304.0,92286.0,0.09692155]
[1767721550172,0.09264312,92323.0,92290.0,0.09692155]
[1767721550376,0.18016,92320.0,92296.0,0.010839]
[1767721550574,0.19593255,92320.0,92296.0,0.010839]
[1767721550869,0.19593255,92320.0,92290.0,0.09692155]
[1767721550870,0.09264312,92319.0,92290.0,0.09692155]
[1767721551072,0.010837,92316.0,92290.0,0.09692155]
[1767721551371,0.09264312,92319.0,92279.0,0.09692155]
[1767721551569,0.98611257,92320.0,92279.0,0.09692155]
[1767721551570,0.010838,92302.0,92279.0,0.09692155]
[1767721551779,0.09224,92301.0,92278.0,0.09181986]
[1767721552074,0.09224,92301.0,92285.0,0.01084]
[1767721552263,0.09224,92301.0,92280.0,0.010841]
[1767721552468,0.09224,92301.0,92278.0,0.18874141]
[1767721552770,0.0922,92314.0,92306.0,0.010838]
[1767721552963,0.0922,92314.0,92300.0,0.010839]
[1767721553562,0.0922,92314.0,92299.0,0.09181986]
[1767721553763,0.09264312,92313.0,92290.0,0.10304]
[1767721553975,0.09264312,92313.0,92290.0,0.0922]
[1767721554570,0.09264312,92313.0,92283.0,0.0922]
[1767721554771,0.09264312,92313.0,92283.0,0.18401986]
[1767721554978,0.09264312,92313.0,92284.0,0.18874141]
[1767721555194,0.09264312,92313.0,92285.0,0.09181986]
[1767721555481,0.09264312,92313.0,92285.0,0.07081986]
[1767721555886,0.010838,92308.0,92285.0,0.07081986]
[1767721556276,0.010838,92305.0,92285.0,0.07081986]
[1767721556477,0.010838,92302.0,92285.0,0.07081986]
[1767721556678,0.010838,92302.0,92261.0,0.010843]
[1767721556679,0.010839,92299.0,92276.0,0.0922]
[1767721556879,0.010839,92297.0,92273.0,0.18912155]
[1767721557079,0.0922,92296.0,92273.0,0.18912155]
[1767721557376,0.010841,92284.0,92273.0,0.18912155]
[1767721557579,0.09173742,92293.0,92266.0,0.09724477]
[1767721557772,0.010839,92301.0,92270.0,0.09724477]
[1767721557773,0.01084,92286.0,92270.0,0.09724477]
[1767721557972,0.01084,92286.0,92271.0,0.09478463]
[1767721558201,0.0922,92285.0,92272.0,0.09724477]
[1767721558381,0.010841,92283.0,92263.0,0.1920294]
[1767721558577,0.0922,92285.0,92263.0,0.09724477]
[1767721558777,0.09173742,92295.0,92261.0,0.1920294]
[1767721558984,0.09173742,92295.0,92256.0,0.0922]
[1767721558985,0.01084,92289.0,92276.0,0.09724477]
[1767721559175,0.010841,92283.0,92276.0,0.09724477]
[1767721559370,0.0922,92288.0,92256.0,0.103044]
[1767721559371,0.01084,92287.0,92263.0,0.09724477]
[1767721559583,0.0922,92288.0,92249.0,0.00216806]
[1767721559584,0.10257842,92281.0,92254.0,0.09478463]
[1767721559782,0.09173742,92281.0,92249.0,0.00216806]
[1767721559992,0.010843,92259.0,92249.0,0.00216806]
[1767721560176,0.0922,92265.0,92249.0,0.00216806]
[1767721560385,0.47896,92281.0,92256.0,0.09724477]
[1767721560582,0.0922,92280.0,92256.0,0.09724477]
[1767721560782,0.010842,92273.0,92249.0,0.19419746]
[1767721560983,0.0922,92280.0,92249.0,0.19419746]
[1767721560984,0.10257642,92294.0,92255.0,0.09724477]
[1767721561183,0.010841,92282.0,92259.0,0.09098401]
[1767721561384,0.10257642,92294.0,92250.0,0.09410713]
[1767721561385,0.09538401,92280.0,92250.0,0.09410713]
[1767721561583,0.09538401,92280.0,92249.0,0.00216806]
[1767721561584,0.010844,92255.0,92249.0,6e-08]
[1767721561784,0.010844,92258.0,92241.0,0.09410713]
[1767721561976,0.0922,92262.0,92241.0,0.09410713]
[1767721562174,0.09538401,92261.0,92235.0,0.09098401]
[1767721562380,0.010845,92249.0,92232.0,0.09410713]
[1767721562585,0.010844,92250.0,92232.0,0.09410713]
[1767721562780,0.010844,92250.0,92230.0,0.0922]
[1767721563077,0.010845,92248.0,92230.0,0.0922]
[1767721563278,0.0922,92252.0,92230.0,0.0782]
[1767721563594,0.010846,92233.0,92219.0,0.00216876]
[1767721563784,0.0922,92240.0,92219.0,0.00216876]
[1767721563986,0.010845,92244.0,92222.0,0.09410713]
[1767721564179,0.09538401,92259.0,92219.0,0.00216876]
[1767721564180,0.0922,92243.0,92227.0,0.18509114]
[1767721564382,0.010846,92241.0,92219.0,0.1872599]
[1767721564590,0.010846,92241.0,92220.0,0.18509114]
[1767721564778,0.010846,92239.0,92221.0,0.09098401]
[1767721564983,0.13509018,92286.0,92226.0,0.09098401]
[1767721564984,0.02558268,92248.0,92226.0,0.09098401]
[1767721565191,0.010845,92246.0,92228.0,0.09098401]
[1767721565399,0.09538401,92261.0,92219.0,0.00216876]
[1767721565400,0.10622901,92244.0,92219.0,0.00216876]
[1767721565689,0.010844,92255.0,92219.0,0.00216876]
[1767721565690,0.010847,92229.0,92219.0,0.00216876]
[1767721565891,0.09538401,92240.0,92211.0,0.0922]
[1767721565892,0.010847,92225.0,92211.0,0.0922]
[1767721566097,0.09538401,92240.0,92212.0,0.09098401]
[1767721566392,0.09538401,92240.0,92211.0,0.09410713]
[1767721566393,0.010845,92247.0,92221.0,0.09098401]
[1767721566596,0.0922,92246.0,92223.0,0.09098401]
[1767721566780,0.010845,92245.0,92223.0,0.09098401]
[1767721567186,0.0922,92246.0,92223.0,0.09098401]
[1767721567393,0.01519675,92255.0,92226.0,0.18509114]
[1767721567593,0.09224,92254.0,92234.0,0.09098401]
[1767721567778,0.09224,92253.0,92235.0,0.09098401]
[1767721568381,0.01472111,92261.0,92237.0,0.09410713]
[1767721568582,0.09224,92267.0,92244.0,0.09098401]
[1767721568787,0.010843,92266.0,92244.0,0.09098401]
[1767721569080,0.1682,92286.0,92243.0,0.18634713]
[1767721569081,0.09538401,92288.0,92249.0,0.09410713]
[1767721569285,0.010841,92276.0,92253.0,0.09098401]
[1767721569483,0.09224,92275.0,92253.0,0.09098401]
[1767721569991,0.010842,92274.0,92253.0,0.09098401]
[1767721570184,0.010842,92274.0,92252.0,0.09410713]
[1767721570185,0.010842,92268.0,92243.0,0.18322401]
[1767721570387,0.20287211,92275.0,92245.0,0.09098401]
[1767721570593,0.1074881,92275.0,92249.0,0.09098401]
[1767721570787,0.1074881,92275.0,92252.0,0.09098401]
[1767721571094,0.1074881,92275.0,92253.0,0.09098401]
[1767721571395,0.92248,92311.0,92253.0,0.09098401]
[1767721571396,0.09224,92279.0,92260.0,0.08698401]
[1767721571786,0.1071871,92279.0,92260.0,0.08698401]
[1767721571983,0.09224,92279.0,92260.0,0.09410713]
[1767721572181,0.09224,92287.0,92268.0,0.09410713]
[1767721572386,0.09224,92290.0,92268.0,0.10494913]
[1767721572598,0.09224,92290.0,92272.0,0.010842]
[1767721572790,0.09224,92297.0,92272.0,0.10494913]
[1767721573094,0.10711706,92297.0,92272.0,0.10494913]
[1767721573496,0.10711706,92297.0,92273.0,0.09098401]
[1767721573687,0.10711706,92297.0,92276.0,0.010841]
[1767721573989,0.09224,92297.0,92280.0,0.010841]
[1767721574195,0.09224,92297.0,92277.0,0.09098401]
[1767721574695,0.09224,92297.0,92278.0,0.010841]
[1767721575105,0.91836,92315.0,92278.0,0.010841]
[1767721575106,0.02290862,92320.0,92287.0,0.09098401]
[1767721575389,0.02290862,92320.0,92269.0,0.010842]
[1767721575390,0.09224,92316.0,92292.0,0.18509114]
[1767721575690,0.09224,92316.0,92295.0,0.09098401]
[1767721575895,0.09224,92316.0,92296.0,0.09098401]
[1767721576093,0.01456046,92320.0,92300.0,0.09098401]
[1767721576282,0.09224,92327.0,92301.0,0.09098401]
[1767721576487,0.010836,92325.0,92301.0,0.09098401]
[1767721576691,0.10748032,92327.0,92301.0,0.09098401]
[1767721577501,0.10748032,92327.0,92299.0,0.09224]
[1767721577502,0.09538401,92326.0,92299.0,0.18322401]
[1767721577892,0.010836,92325.0,92299.0,0.18322401]
[1767721578200,0.10748032,92327.0,92305.0,0.09098401]
[1767721578391,0.10748032,92327.0,92306.0,0.10182201]
[1767721578593,0.010834,92338.0,92314.0,0.09410713]
[1767721578793,0.0922,92337.0,92314.0,0.09410713]
[1767721579014,0.0922,92336.0,92314.0,0.09410713]
[1767721579293,0.10720203,92336.0,92314.0,0.09410713]
[1767721579694,0.10720203,92336.0,92311.0,0.0922]